bitfinex/quotes_SOLUSD_20220102
["timestamp","ask_amount","ask_price","bid_price","bid_amount"]
[1641150931744,37.00132377,175.94,175.86,1.7925]
[1641150936047,37.00132377,175.94,175.86,10.3207]
[1641150937448,1.61434317,175.97,175.86,15.4917]
[1641150937648,8.5266,175.96,175.86,15.7517]
[1641150937848,2.83104317,175.97,175.86,17.17839368]
[1641150938255,1.2167,175.97,175.86,17.17839368]
[1641150938450,29.0742902,175.96,175.86,17.17839368]
[1641150938649,29.0742902,175.96,175.86,12.00739368]
[1641150938850,37.6009902,175.96,175.86,12.00739368]
[1641150943885,37.6009902,175.96,175.86,11.74739368]
[1641150947089,37.6009902,175.96,175.86,12.00739368]
[1641150955900,37.6009902,175.96,175.86,10.5807]
[1641150957202,38.8742902,175.96,175.86,10.5807]
[1641150959303,38.8742902,175.96,175.86,10.3207]
[1641150960503,38.8742902,175.96,175.86,10.5807]
[1641150967012,9.8,175.96,175.86,10.5807]
[1641150967210,1.61434317,175.97,175.87,1.42669368]
[1641150967422,1.61434317,175.97,175.92,8.5252]
[1641150967711,1.61434317,175.97,175.92,8.7852]
[1641150967911,1.61434317,175.97,175.92,9.2852]
[1641150968112,30.76511596,175.98,175.92,9.2852]
[1641150968315,8.5252,176.0,175.92,9.2852]
[1641150968714,8.5252,176.0,175.92,9.19350783]
[1641150969314,22.43430076,175.99,175.92,9.19350783]
[1641150973122,22.43430076,175.99,175.92,8.93350783]
[1641150973919,22.43430076,175.99,175.92,0.5]
[1641150974421,22.43430076,175.99,175.91,10.2407]
[1641150974721,30.95980076,175.99,175.91,10.2407]
[1641150975021,22.43430076,175.99,175.91,10.5007]
[1641150976423,8.5243,176.01,175.91,10.5007]
[1641150977256,27.04479389,176.0,175.91,10.5007]
[1641150979759,27.04479389,176.0,175.91,11.92739368]
[1641150981459,27.04479389,176.0,175.91,10.5007]
[1641150982560,8.5244,176.01,175.91,10.5007]
[1641150982959,8.5238,176.03,175.91,10.5007]
[1641150983163,8.1,176.04,175.91,17.94139368]
[1641150983660,73.9369,176.05,175.91,17.94139368]
[1641150983861,1.2241,176.05,175.92,8.1]
[1641150984061,8.5221,176.06,175.98,8.522]
[1641150984261,8.5221,176.06,175.98,16.024]
[1641150984460,8.5221,176.06,175.98,16.784]
[1641150984662,1.61434317,176.07,175.98,16.784]
[1641150985265,25.94306251,176.08,175.98,16.784]
[1641150985461,1.3237,176.08,175.99,9.7627]
[1641150985661,1.61434317,176.1,175.99,9.7627]
[1641150985863,1.61434317,176.1,175.99,11.94939368]
[1641150986462,32.19814785,176.1,175.99,11.94939368]
[1641150986661,32.19814785,176.1,175.99,10.5227]
[1641150987064,1.327,176.09,175.99,10.5227]
[1641150988865,30.58380468,176.1,175.99,10.5227]
[1641150989265,31.82050468,176.1,175.99,10.0227]
[1641150990068,31.82050468,176.1,175.99,11.44939368]
[1641150993269,1.2367,176.1,175.99,11.44939368]
[1641150995870,1.2367,176.1,175.99,11.18939368]
[1641150997275,1.61434317,176.09,175.99,11.44939368]
[1641150998379,1.61434317,176.08,175.99,11.44939368]
[1641150999178,1.61434317,176.09,175.99,11.44939368]
[1641150999581,1.61434317,176.09,175.99,11.18939368]
[1641150999982,1.61434317,176.1,175.99,11.18939368]
[1641151001083,1.61434317,176.09,175.99,11.44939368]
[1641151001983,1.61434317,176.1,175.99,11.44939368]
[1641151002587,1.61434317,176.1,176.0,8.1]
[1641151002887,1.61434317,176.1,176.03,8.5195]
[1641151003085,1.61434317,176.1,176.03,8.7795]
[1641151003310,1.61434317,176.1,176.03,9.0195]
[1641151003508,1.61434317,176.1,176.03,0.5]
[1641151003909,1.61434317,176.1,176.0,8.1]
[1641151003910,1.61434317,176.1,176.0,8.6]
[1641151004309,1.61434317,176.09,176.0,8.6]
[1641151004910,1.61434317,176.09,176.01,8.5204]
[1641151005512,1.61434317,176.09,176.01,9.0204]
[1641151006014,1.61434317,176.09,176.01,9.2804]
[1641151006411,1.61434317,176.09,176.01,9.0204]
[1641151008114,10.13524317,176.09,176.01,9.0204]
[1641151008311,1.61434317,176.08,176.01,9.0204]
[1641151010616,1.61434317,176.08,176.01,9.2804]
[1641151011417,2.94284317,176.1,176.01,9.2804]
[1641151011818,2.94284317,176.1,176.01,9.0204]
[1641151012718,11.46324317,176.1,176.01,9.0204]
[1641151013718,1.61434317,176.09,176.01,9.0204]
[1641151015018,1.61434317,176.09,176.01,9.2804]
[1641151015419,2.94284317,176.1,176.01,9.2804]
[1641151016620,1.3285,176.1,176.01,9.2804]
[1641151017721,2.94284317,176.1,176.01,9.2804]
[1641151018320,2.94284317,176.1,176.01,9.0204]
[1641151018524,11.46314317,176.1,176.01,9.0204]
[1641151020523,9.8488,176.1,176.01,9.0204]
[1641151021127,9.8488,176.1,176.07,0.71522693]
[1641151021324,68.0,176.09,176.01,0.5]
[1641151021524,8.5225,176.06,175.95,2.9823935]
[1641151021726,71.12718625,176.09,175.95,2.9823935]
[1641151021727,68.5,176.09,175.95,2.9823935]
[1641151021948,29.86461458,176.07,175.93,92.0281935]
[1641151022726,8.523,176.05,175.97,8.5228]
[1641151022924,8.523,176.05,175.97,9.0228]
[1641151023424,15.862,176.05,175.97,0.5]
[1641151023625,15.862,176.05,175.93,80.1685]
[1641151023829,15.862,176.05,175.93,0.5]
[1641151024026,24.462,176.05,175.93,0.5]
[1641151024225,24.462,176.05,175.91,3.4823935]
[1641151024624,1.3321,176.04,175.91,3.4823935]
[1641151024824,8.5253,176.0,175.91,12.0080935]
[1641151025033,22.94508581,175.99,175.91,12.2680935]
[1641151025630,22.94508581,175.99,175.91,9.2857]
[1641151026224,22.94508581,175.99,175.91,9.0257]
[1641151027931,22.94508581,175.99,175.91,9.2857]
[1641151028731,22.94508581,175.99,175.91,9.0257]
[1641151029335,22.94508581,175.99,175.91,10.45239368]
[1641151030458,22.94508581,175.99,175.91,9.0257]
[1641151031257,31.47058581,175.99,175.91,9.0257]
[1641151037662,22.94508581,175.99,175.91,9.0257]
[1641151037863,22.94508581,175.99,175.91,10.45239368]
[1641151038064,22.94508581,175.99,175.91,10.71239368]
[1641151039366,9.7579,176.02,175.91,10.71239368]
[1641151040164,9.7579,176.02,175.92,1.2991]
[1641151040365,23.62030213,176.01,175.93,8.5245]
[1641151040765,23.62030213,176.01,175.93,9.2845]
[1641151042263,23.62030213,176.01,175.93,9.0245]
[1641151043967,32.14490213,176.01,175.93,9.0245]
[1641151045068,32.14490213,176.01,175.93,9.2845]
[1641151045571,23.62030213,176.01,175.93,9.2845]
[1641151046173,23.62030213,176.01,175.94,1.42669368]
[1641151046370,1.61434317,176.05,175.97,8.522]
[1641151046569,1.61434317,176.05,175.97,8.782]
[1641151046769,1.61434317,176.05,175.98,1.42669368]
[1641151046973,1.61434317,176.05,175.98,0.26]
[1641151047170,1.61434317,176.07,175.98,0.76]
[1641151047371,27.26532825,176.06,175.98,0.76]
[1641151047769,27.26532825,176.06,176.0,8.5212]
[1641151047969,27.26532825,176.06,176.0,9.2812]
[1641151048573,27.26532825,176.06,176.0,9.0212]
[1641151048973,27.26532825,176.06,176.0,9.2812]
[1641151049476,27.26532825,176.06,176.0,9.0212]
[1641151050173,27.26532825,176.06,176.0,0.5]
[1641151050376,27.26532825,176.06,175.97,1.9709]
[1641151050575,27.26532825,176.06,175.97,1.4709]
[1641151050777,27.26532825,176.06,175.97,1.9709]
[1641151051474,27.26532825,176.06,175.99,8.5217]
[1641151051875,27.26532825,176.06,175.99,9.2817]
[1641151052977,35.78752825,176.06,175.99,9.2817]
[1641151053376,35.78752825,176.06,175.99,9.0217]
[1641151053577,35.78752825,176.06,175.99,0.5]
[1641151053876,1.61434317,176.05,175.97,9.0224]
[1641151054375,1.61434317,176.05,175.97,0.5]
[1641151054376,8.5232,176.04,175.97,0.5]
[1641151054878,8.5232,176.04,175.96,154.9089]
[1641151055704,10.13754317,176.04,175.96,154.9089]
[1641151055882,10.13754317,176.04,175.96,163.4323]
[1641151057685,8.5232,176.04,175.96,163.4323]
[1641151058284,10.13754317,176.04,175.96,163.4323]
[1641151058484,1.61434317,176.04,175.96,163.6923]
[1641151059088,1.61434317,176.04,175.96,165.11899368]
[1641151059384,1.61434317,176.05,175.96,165.11899368]
[1641151059586,1.61434317,176.05,176.01,8.5203]
[1641151059786,1.61434317,176.05,175.97,29.6302]
[1641151059984,23.32695389,176.05,175.97,1.9892]
[1641151060686,23.32695389,176.05,175.97,10.5117]
[1641151063920,24.94129706,176.05,175.97,10.5117]
[1641151064114,24.94129706,176.05,175.97,10.2517]
[1641151064614,23.32695389,176.05,175.97,10.2517]
[1641151065317,31.84945389,176.05,175.97,10.2517]
[1641151066517,23.32695389,176.05,175.97,10.5117]
[1641151066717,23.32695389,176.05,175.97,11.93839368]
[1641151068417,1.2082,176.08,175.97,11.93839368]
[1641151069420,29.60902094,176.07,175.97,11.93839368]
[1641151075728,38.13072094,176.07,175.97,11.93839368]
[1641151076828,39.74506411,176.07,175.97,11.93839368]
[1641151077230,31.22336411,176.07,175.97,11.93839368]
[1641151077432,29.60902094,176.07,175.97,11.93839368]
[1641151079835,39.74496411,176.07,175.97,10.5117]
[1641151082334,39.74496411,176.07,175.97,10.2517]
[1641151082535,39.74496411,176.07,175.97,8.5225]
[1641151082736,39.74496411,176.07,175.92,2.9823935]
[1641151082937,40.24496411,176.07,175.93,1.2316]
[1641151083234,8.1,176.06,175.93,1.2316]
[1641151083434,8.5248,176.01,175.93,1.7316]
[1641151083634,39.84318812,176.01,175.93,1.7316]
[1641151083835,31.31838812,176.01,175.93,10.256]
[1641151084034,31.31838812,176.01,175.93,10.516]
[1641151085442,31.31838812,176.01,175.93,9.0244]
[1641151085639,31.31838812,176.01,175.93,0.5]
[1641151086042,31.31838812,176.01,175.92,9.0253]
[1641151086942,39.84298812,176.01,175.92,9.0253]
[1641151089346,39.84298812,176.01,175.9,74.6138]
[1641151089549,40.34298812,176.01,175.9,74.6138]
[1641151089750,40.34298812,176.01,175.9,75.1138]
[1641151089950,40.34298812,176.01,175.9,0.5]
[1641151090352,40.34298812,176.01,175.89,78.0425]
[1641151090850,1.3139,176.0,175.89,78.0425]
[1641151091051,33.26216322,175.96,175.89,0.5]
[1641151091452,33.26216322,175.96,175.88,9.0271]
[1641151091855,33.26216322,175.96,175.88,10.2718]
[1641151094651,24.73516322,175.96,175.88,10.2718]
[1641151094853,24.73516322,175.96,175.88,10.5318]
[1641151095652,24.73516322,175.96,175.88,10.2718]
[1641151097384,1.61434317,176.0,175.88,10.5318]
[1641151097785,1.61434317,176.0,175.88,26.3458]
[1641151098186,1.61434317,176.0,175.89,1.42669368]
[1641151098387,1.61434317,176.0,175.94,8.5235]
[1641151098588,1.61434317,176.0,175.94,8.7835]
[1641151098786,1.61434317,176.0,175.94,10.71019368]
[1641151098986,29.29254834,176.01,175.94,10.71019368]
[1641151099187,1.61434317,176.04,175.94,10.71019368]
[1641151099386,1.61434317,176.04,175.94,18.27319368]
[1641151099788,1.61434317,176.05,175.94,18.27319368]
[1641151100191,27.1233477,176.05,175.94,18.27319368]
[1641151100689,27.1233477,176.05,175.94,19.49839368]
[1641151102390,35.6463477,176.05,175.94,19.49839368]
[1641151102693,35.6463477,176.05,175.94,11.93539368]
[1641151103395,35.6463477,176.05,175.94,10.2487]
[1641151104096,1.61434317,176.04,175.94,10.2487]
[1641151104295,10.13774317,176.04,175.94,10.2487]
[1641151104895,10.13774317,176.04,175.94,10.5087]
[1641151109531,11.37514317,176.04,175.94,10.5087]
[1641151111233,9.7608,176.04,175.94,10.5087]
[1641151113833,1.2374,176.04,175.94,10.5087]
[1641151114834,9.7607,176.04,175.94,10.5087]
[1641151115236,9.7607,176.04,175.94,10.2487]
[1641151116039,11.37504317,176.04,175.94,10.2487]
[1641151116538,11.37504317,176.04,175.94,10.5087]
[1641151116741,2.85174317,176.04,175.94,10.5087]
[1641151117444,2.85174317,176.04,175.94,11.93539368]
[1641151117642,1.2374,176.04,175.94,11.93539368]
[1641151118043,1.2374,176.04,175.94,11.67539368]
[1641151118743,9.7607,176.04,175.94,11.67539368]
[1641151119445,1.2374,176.04,175.94,11.67539368]
[1641151119644,1.2374,176.04,175.94,11.93539368]
[1641151121549,25.50900453,176.05,175.94,11.93539368]
[1641151123052,34.03180453,176.05,175.94,11.93539368]
[1641151123452,1.296,176.04,175.94,11.93539368]
[1641151124153,1.296,176.04,175.94,11.67539368]
[1641151125553,1.296,176.04,175.94,11.93539368]
[1641151131661,1.296,176.04,175.94,11.51119132]
[1641151132064,1.296,176.04,175.94,9.82449764]
[1641151133165,9.8194,176.04,175.94,9.82449764]
[1641151134584,9.8194,176.04,175.94,10.08449764]
[1641151137389,1.296,176.04,175.94,10.08449764]
[1641151137790,1.296,176.04,175.94,11.51119132]
[1641151138190,25.50900453,176.05,175.94,11.51119132]
[1641151140591,34.03190453,176.05,175.94,11.51119132]
[1641151140791,34.03190453,176.05,175.94,9.82449764]
[1641151140994,34.53190453,176.05,175.94,9.82449764]
[1641151141293,36.1462477,176.05,175.94,9.82449764]
[1641151142191,8.5244,176.02,175.94,9.82449764]
[1641151142391,24.31585758,176.01,175.94,9.82449764]
[1641151142593,24.31585758,176.01,175.94,1.7252]
[1641151142791,24.31585758,176.01,175.91,74.9259]
[1641151142993,24.31585758,176.01,175.89,2.9823935]
[1641151142994,32.41585758,176.01,175.89,2.9823935]
[1641151143193,32.91585758,176.01,175.89,2.9823935]
[1641151143492,41.44065758,176.01,175.89,2.9823935]
[1641151144094,43.05500075,176.01,175.87,10.63904559]
[1641151144297,43.05500075,176.01,175.87,11.13904559]
[1641151144894,41.44065758,176.01,175.87,11.13904559]
[1641151145096,42.64625758,176.01,175.87,11.13904559]
[1641151149899,1.61434317,176.0,175.87,11.13904559]
[1641151150097,29.03429215,175.95,175.87,11.13904559]
[1641151150698,29.03429215,175.95,175.87,10.45429368]
[1641151151500,29.03429215,175.95,175.87,9.0276]
[1641151156706,37.56209215,175.95,175.87,9.0276]
[1641151156907,37.56209215,175.95,175.87,0.5]
[1641151157306,37.56209215,175.95,175.86,1.7443]
[1641151157506,38.06209215,175.95,175.86,1.2443]
[1641151157707,37.56209215,175.95,175.86,1.7443]
[1641151158511,29.03429215,175.95,175.86,1.7443]
[1641151159811,37.56229215,175.95,175.86,10.2723]
[1641151160011,29.03429215,175.95,175.86,10.2723]
[1641151160614,1.61434317,175.99,175.87,1.42669368]
[1641151160810,10.14034317,175.99,175.89,8.5262]
[1641151161212,10.14034317,175.99,175.89,9.0262]
[1641151161611,30.64281323,175.98,175.89,0.5]
[1641151161812,30.64281323,175.98,175.85,8.1]
[1641151162011,1.2247,175.97,175.86,1.3202]
[1641151163413,1.2247,175.97,175.86,1.8202]
[1641151163813,8.5281,175.95,175.86,10.3483]
[1641151164013,26.89504941,175.94,175.86,10.3483]
[1641151165114,26.89504941,175.94,175.86,10.6083]
[1641151167717,26.89504941,175.94,175.86,10.3483]
[1641151175650,26.89504941,175.94,175.86,1.3202]
[1641151176751,35.42354941,175.94,175.86,1.3202]
[1641151177352,35.42354941,175.94,175.86,1.8202]
[1641151177755,35.42354941,175.94,175.86,1.3202]
[1641151178354,35.42354941,175.94,175.86,1.8202]
[1641151182256,8.5285,175.94,175.86,1.8202]
[1641151182659,1.2458,175.95,175.86,10.3483]
[1641151183757,1.2458,175.95,175.86,10.6083]
[1641151184058,38.65119983,175.99,175.86,10.6083]
[1641151184259,30.55119983,175.99,175.86,10.6083]
[1641151184457,1.2896,175.98,175.86,10.6083]
[1641151184858,9.8164,175.98,175.86,10.6083]
[1641151185661,1.61434317,175.99,175.86,10.6083]
[1641151185861,1.61434317,175.99,175.87,9.52669368]
[1641151186160,1.61434317,175.99,175.93,8.5244]
[1641151186359,1.61434317,175.99,175.93,9.0244]
[1641151186959,25.72177209,175.98,175.93,8.5244]
[1641151187159,25.72177209,175.98,175.9,29.7092]
[1641151187160,31.94177209,175.98,175.9,1.2969]
[1641151187361,31.94177209,175.98,175.91,8.5257]
[1641151187559,6.22,175.98,175.91,8.5257]
[1641151187761,6.22,175.98,175.91,9.0257]
[1641151188559,30.1759563,175.98,175.91,9.0257]
[1641151189362,30.1759563,175.98,175.91,0.5]
[1641151189860,30.1759563,175.98,175.89,8.6]
[1641151190661,38.7021563,175.98,175.89,0.5]
[1641151190963,38.7021563,175.98,175.88,9.0272]
[1641151191561,1.243,175.97,175.88,9.0272]
[1641151191762,8.5272,175.96,175.88,9.0272]
[1641151192068,1.243,175.97,175.88,9.0272]
[1641151192262,30.1759563,175.98,175.88,9.0272]
[1641151192561,30.1759563,175.98,175.88,9.2872]
[1641151193162,8.5266,175.97,175.89,9.7997]
[1641151193363,8.5266,175.97,175.89,10.2997]
[1641151193566,8.5266,175.97,175.89,1.7732]
[1641151194163,8.5266,175.97,175.89,0.5]
[1641151194369,9.8361,175.97,175.86,1.267]
[1641151194764,9.8361,175.97,175.88,8.5272]
[1641151194966,9.8361,175.97,175.88,9.0272]
[1641151199370,9.8361,175.97,175.88,0.5]
[1641151199971,9.8361,175.97,175.86,9.7948]
[1641151199972,9.8361,175.97,175.86,10.2948]
[1641151200174,9.8361,175.97,175.86,1.767]
[1641151201071,11.45044317,175.97,175.86,1.767]
[1641151201871,11.45044317,175.97,175.87,8.5277]
[1641151202306,11.45044317,175.97,175.87,9.0277]
[1641151203310,1.61434317,175.96,175.87,0.5]
[1641151203709,8.5281,175.94,175.86,1.751]
[1641151204112,1.61434317,175.96,175.86,2.011]
[1641151204512,1.2912,175.97,175.86,10.5391]
[1641151204709,8.5272,175.96,175.86,10.5391]
[1641151207013,1.2551,175.95,175.86,10.5391]
[1641151210114,1.2551,175.95,175.86,10.2791]
[1641151212018,1.2551,175.95,175.86,10.5391]
[1641151212923,38.7024563,175.98,175.86,10.5391]
[1641151213123,8.5265,175.98,175.86,10.5391]
[1641151213519,8.5265,175.98,175.86,18.6391]
[1641151213720,1.61434317,176.01,175.86,20.06579368]
[1641151214823,8.5248,176.01,175.86,20.06579368]
[1641151216025,40.58228495,176.02,175.86,20.06579368]
[1641151219532,1.61434317,176.0,175.86,23.04818718]
[1641151220130,1.61434317,176.01,175.86,23.04818718]
[1641151222355,10.13914317,176.01,175.86,23.04818718]
[1641151223558,1.61434317,176.0,175.86,23.04818718]
[1641151224357,1.11434317,176.0,175.86,23.04818718]
[1641151224563,0.5,176.0,175.86,23.04818718]
[1641151225357,11.42524317,176.01,175.86,23.04818718]
[1641151226461,10.3109,176.01,175.86,20.06579368]
[1641151227061,10.3109,176.01,175.86,19.80579368]
[1641151227260,10.3109,176.01,175.86,18.3791]
[1641151229162,18.4109,176.01,175.86,18.3791]
[1641151230965,18.4109,176.01,175.86,10.5391]
[1641151232565,18.4109,176.01,175.86,10.2791]
[1641151234364,19.83759368,176.01,175.86,10.2791]
[1641151234769,6.46360692,176.0,175.86,10.2791]
[1641151234968,8.528,175.95,175.86,10.2791]
[1641151235167,31.86059712,175.94,175.86,10.2791]
[1641151235872,33.13199712,175.94,175.86,10.2791]
[1641151237168,41.66029712,175.94,175.86,10.2791]
[1641151241576,33.13199712,175.94,175.86,10.2791]
[1641151245886,41.66029712,175.94,175.86,10.2791]
[1641151246088,33.13199712,175.94,175.86,10.2791]
[1641151247306,33.13199712,175.94,175.86,0.5]
[1641151247711,33.13199712,175.94,175.84,159.1962]
[1641151248716,41.66039712,175.94,175.84,159.1962]
[1641151249211,40.38899712,175.94,175.84,159.1962]
[1641151249412,31.86059712,175.94,175.84,167.5562]
[1641151250012,31.86059712,175.94,175.87,8.5272]
[1641151250418,31.86059712,175.94,175.87,9.0272]
[1641151252217,31.86059712,175.94,175.85,9.7894]
[1641151252416,40.38929712,175.94,175.85,1.7612]
[1641151255819,38.88929712,175.94,175.85,0.5]
[1641151256020,39.38929712,175.94,175.79,105.0823935]
[1641151256223,8.1,175.93,175.79,96.9823935]
[1641151256422,29.40467663,175.87,175.79,96.9823935]
[1641151257025,29.40467663,175.87,175.79,94.0]
[1641151257424,29.40467663,175.87,175.79,94.5]
[1641151257425,37.93677663,175.87,175.79,94.5]
[1641151259323,38.43677663,175.87,175.79,94.5]
[1641151260229,38.43677663,175.87,175.79,0.5]
[1641151260426,38.43677663,175.87,175.75,0.68475191]
[1641151261529,8.5345,175.82,175.75,0.68475191]
[1641151261732,38.19446209,175.82,175.75,0.68475191]
[1641151261933,1.2162,175.86,175.75,0.68475191]
[1641151262130,8.1,175.89,175.75,9.59544559]
[1641151262333,8.1,175.89,175.75,18.12854559]
[1641151262531,3.2291841,175.9,175.76,8.1]
[1641151262731,3.2291841,175.9,175.76,16.68992439]
[1641151263033,27.90323546,175.9,175.77,83.45791807]
[1641151263233,24.67405136,175.9,175.78,8.1]
[1641151263533,4.4692841,175.95,175.84,8.5281]
[1641151263932,4.9692841,175.95,175.84,9.2881]
[1641151264551,24.88544133,175.94,175.84,9.2881]
[1641151265771,1.2401,175.95,175.84,9.2881]
[1641151265971,3.2291841,175.97,175.85,9.52669368]
[1641151266367,3.2291841,175.97,175.86,1.42669368]
[1641151266566,3.2291841,175.97,175.86,9.78669368]
[1641151266770,24.44470813,175.96,175.86,10.28669368]
[1641151267670,24.44470813,175.96,175.87,8.5269]
[1641151267869,24.44470813,175.96,175.87,9.0269]
[1641151270277,24.44470813,175.96,175.87,0.5]
[1641151270476,24.44470813,175.96,175.85,8.5279]
[1641151270679,24.44470813,175.96,175.84,1.7885]
[1641151270877,24.94470813,175.96,175.84,0.5]
[1641151271283,24.94470813,175.96,175.83,74.3546]
[1641151271478,24.94470813,175.96,175.83,82.4546]
[1641151271878,33.47280813,175.96,175.83,90.9835]
[1641151272878,34.68050813,175.96,175.83,90.9835]
[1641151274180,34.68050813,175.96,175.83,92.2734]
[1641151275081,34.68050813,175.96,175.83,92.5334]
[1641151275280,34.68050813,175.96,175.83,92.2734]
[1641151275682,34.18050813,175.96,175.83,92.2734]
[1641151275882,34.18050813,175.96,175.83,92.5334]
[1641151276881,32.97280813,175.96,175.83,92.5334]
[1641151277084,24.44470813,175.96,175.84,1.42669368]
[1641151277284,24.44470813,175.96,175.87,8.5273]
[1641151277586,24.44470813,175.96,175.87,9.0273]
[1641151277784,24.44470813,175.96,175.86,8.1]
[1641151277983,24.94470813,175.96,175.86,0.5]
[1641151278183,24.94470813,175.96,175.84,8.5288]
[1641151278184,39.07780813,175.96,175.84,8.5288]
[1641151278385,47.17780813,175.96,175.82,74.9576]
[1641151279086,6.46555297,175.95,175.81,1.42669368]
[1641151279385,8.5308,175.9,175.81,1.42669368]
[1641151279587,29.19547099,175.89,175.81,1.92669368]
[1641151280685,29.19547099,175.89,175.81,10.45689368]
[1641151283689,29.19547099,175.89,175.79,17.9133]
[1641151283889,29.19547099,175.89,175.79,10.3133]
[1641151284092,29.19547099,175.89,175.79,11.73999368]
[1641151284890,37.72657099,175.89,175.79,10.3133]
[1641151285890,38.22657099,175.89,175.79,10.3133]
[1641151287093,37.72657099,175.89,175.79,10.3133]
[1641151287491,37.72657099,175.89,175.79,10.5733]
[1641151288495,29.19547099,175.89,175.79,11.99999368]
[1641151292697,17.8703,175.93,175.79,11.99999368]
[1641151292898,18.3703,175.93,175.79,11.99999368]
[1641151293100,17.8703,175.93,175.79,11.99999368]
[1641151293801,27.47146611,175.92,175.79,11.99999368]
[1641151294200,27.47146611,175.92,175.8,8.1]
[1641151294400,27.47146611,175.92,175.83,8.5293]
[1641151294805,27.47146611,175.92,175.83,9.0293]
[1641151295200,36.00116611,175.92,175.83,9.0293]
[1641151295400,36.00116611,175.92,175.82,1.2566]
[1641151295603,36.00116611,175.92,175.82,1.7566]
[1641151298905,36.00116611,175.92,175.82,10.2864]
[1641151302537,36.00116611,175.92,175.82,10.5464]
[1641151303341,27.47146611,175.92,175.82,10.5464]
[1641151306340,27.97146611,175.92,175.82,10.5464]
[1641151306741,27.47146611,175.92,175.82,10.5464]
[1641151307441,1.2407,175.93,175.82,10.5464]
[1641151307644,20.0114841,175.97,175.82,16.4984]
[1641151307840,11.8291841,175.97,175.83,1.42669368]
[1641151308040,0.5,175.97,175.87,8.5276]
[1641151308442,22.63531476,175.96,175.87,9.0276]
[1641151308645,31.16291476,175.96,175.87,9.0276]
[1641151308844,31.66291476,175.96,175.88,1.2527]
[1641151309243,31.66291476,175.96,175.88,1.7527]
[1641151310247,31.66291476,175.96,175.88,1.2527]
[1641151311946,31.66291476,175.96,175.88,1.7527]
[1641151314751,31.66291476,175.96,175.88,10.2799]
[1641151318558,31.66291476,175.96,175.88,10.5399]
[1641151320259,23.13531476,175.96,175.88,10.5399]
[1641151321460,23.13531476,175.96,175.88,0.5]
[1641151321461,31.66271476,175.96,175.88,0.5]
[1641151321860,31.66271476,175.96,175.87,9.0276]
[1641151322861,31.66271476,175.96,175.87,9.2876]
[1641151327688,23.13531476,175.96,175.87,9.2876]
[1641151328089,23.13531476,175.96,175.88,1.2345]
[1641151328289,23.13531476,175.96,175.88,9.7615]
[1641151328489,23.13531476,175.96,175.88,10.2615]
[1641151329288,23.13531476,175.96,175.88,9.7615]
[1641151329689,23.13531476,175.96,175.88,1.2345]
[1641151329889,23.13531476,175.96,175.87,8.5277]
[1641151330094,38.86671476,175.96,175.85,8.1]
[1641151330296,38.86671476,175.96,175.83,8.1]
[1641151330591,38.86671476,175.96,175.82,2.9823935]
[1641151330794,38.86671476,175.96,175.81,30.8624]
[1641151330993,8.529,175.93,175.84,8.5292]
[1641151331192,30.47303408,175.92,175.84,8.5292]
[1641151331992,30.47303408,175.92,175.84,9.0292]
[1641151332592,39.50223408,175.92,175.84,0.5]
[1641151332992,39.50223408,175.92,175.83,9.0297]
[1641151333594,39.00223408,175.92,175.83,9.0297]
[1641151333996,39.50223408,175.92,175.83,0.5]
[1641151334394,39.50223408,175.92,175.82,1.7263]
[1641151334594,39.50223408,175.92,175.81,9.0302]
[1641151335598,39.50223408,175.92,175.81,0.5]
[1641151336099,39.50223408,175.92,175.78,81.20749368]
[1641151336797,39.50223408,175.92,175.8,8.531]
[1641151336998,1.2235,175.91,175.8,9.031]
[1641151337198,26.54730374,175.88,175.8,9.031]
[1641151341307,35.07870374,175.88,175.8,0.5]
[1641151341705,35.57870374,175.88,175.78,81.20749368]
[1641151341908,35.07870374,175.88,175.78,89.30749368]
[1641151343910,35.07870374,175.88,175.78,0.5]
[1641151344114,35.57870374,175.88,175.75,94.0]
[1641151344310,43.67870374,175.88,175.75,94.0]
[1641151344536,45.23532175,175.88,175.73,2.9823935]
[1641151344739,1.2409,175.87,175.73,2.9823935]
[1641151344935,8.5349,175.81,175.73,2.9823935]
[1641151345135,24.4078815,175.8,175.73,2.9823935]
[1641151345938,24.4078815,175.8,175.73,0.5]